bitfinex-derivatives/quotes_SOLF0:USTF0_20251025
["timestamp","ask_amount","ask_price","bid_price","bid_amount"]
[1761401587000,3.80339991,192.32,192.25,2.7]
[1761401587304,3.80339991,192.31,192.25,2.7]
[1761401587506,3.80339991,192.3,192.25,2.7]
[1761401587698,3.80339991,192.29,192.25,2.7]
[1761401587901,4.39651596,192.32,192.25,2.7]
[1761401588109,3.80347204,192.31,192.25,2.7]
[1761401588406,3.80347204,192.3,192.25,2.7]
[1761401588610,3.80347204,192.29,192.25,2.7]
[1761401588905,4.39654331,192.32,192.25,2.7]
[1761401589207,3.80323778,192.31,192.25,2.7]
[1761401589397,3.80323778,192.3,192.25,2.7]
[1761401589604,3.80323778,192.29,192.25,2.7]
[1761401589805,4.39665431,192.32,192.25,2.7]
[1761401590006,3.8033316,192.31,192.25,2.7]
[1761401590205,3.8033316,192.3,192.25,2.7]
[1761401590400,3.8033316,192.29,192.25,2.7]
[1761401590699,4.39665431,192.32,192.25,2.7]
[1761401590897,3.80344714,192.31,192.25,2.7]
[1761401591199,3.80344714,192.3,192.25,2.7]
[1761401591498,3.80344714,192.29,192.25,2.7]
[1761401591698,4.39665431,192.32,192.25,2.7]
[1761401591995,3.80306097,192.31,192.25,2.7]
[1761401592200,3.80306097,192.3,192.25,2.7]
[1761401592399,3.80306097,192.29,192.25,2.7]
[1761401592699,3.80306097,192.28,192.25,2.7]
[1761401592896,4.39649202,192.32,192.25,2.7]
[1761401593204,3.80319255,192.31,192.25,2.7]
[1761401593404,3.80319255,192.3,192.25,2.7]
[1761401593604,3.80319255,192.29,192.25,2.7]
[1761401593804,3.80319255,192.28,192.25,2.7]
[1761401594103,4.39649202,192.32,192.25,2.7]
[1761401594303,3.80351785,192.31,192.25,2.7]
[1761401594504,3.80351785,192.3,192.25,2.7]
[1761401594707,3.80351785,192.29,192.25,2.7]
[1761401594905,3.80351785,192.28,192.25,2.7]
[1761401595105,4.39649202,192.32,192.25,2.7]
[1761401595306,3.80401046,192.31,192.25,2.7]
[1761401595507,3.80401046,192.3,192.25,2.7]
[1761401595706,3.80401046,192.29,192.25,2.7]
[1761401596014,3.80401046,192.28,192.25,2.7]
[1761401596209,4.39649202,192.32,192.25,2.7]
[1761401596411,3.80440243,192.31,192.25,2.7]
[1761401596707,3.80440243,192.3,192.25,2.7]
[1761401596902,3.80440243,192.29,192.25,2.7]
[1761401597103,3.80440243,192.28,192.25,2.7]
[1761401597308,4.39649202,192.32,192.25,2.7]
[1761401597509,3.80525359,192.31,192.25,2.7]
[1761401597708,3.80525359,192.3,192.25,2.7]
[1761401597909,3.80525359,192.29,192.25,2.7]
[1761401598110,3.80525359,192.28,192.25,2.7]
[1761401598309,4.39649202,192.32,192.25,2.7]
[1761401598511,3.80525092,192.31,192.25,2.7]
[1761401598715,3.80525092,192.3,192.25,2.7]
[1761401598911,3.80525092,192.29,192.25,2.7]
[1761401599113,3.80525092,192.28,192.25,2.7]
[1761401599314,9.22214087,192.32,192.25,2.7]
[1761401599612,8.21039489,192.31,192.25,2.7]
[1761401599806,3.81390287,192.3,192.25,2.7]
[1761401600104,3.81390287,192.29,192.25,2.7]
[1761401600303,3.81390287,192.28,192.25,2.7]
[1761401600507,4.39649202,192.31,192.25,2.7]
[1761401600704,3.81413688,192.3,192.25,2.7]
[1761401600908,3.81413688,192.29,192.25,2.7]
[1761401601104,3.81413688,192.28,192.25,2.7]
[1761401601308,3.81441023,192.27,192.25,2.7]
[1761401601509,4.39649202,192.31,192.25,2.7]
[1761401601708,3.81441279,192.3,192.25,2.7]
[1761401601909,4.39978634,192.31,192.25,2.7]
[1761401601910,3.81441279,192.29,192.25,2.7]
[1761401602210,3.81441279,192.28,192.25,2.7]
[1761401602413,3.81441279,192.27,192.25,2.7]
[1761401602717,4.39978634,192.31,192.25,2.7]
[1761401602917,3.81475434,192.3,192.25,2.7]
[1761401603119,3.81475434,192.29,192.25,2.7]
[1761401603311,3.81475434,192.28,192.25,2.7]
[1761401603508,3.81475434,192.27,192.21,2.86]
[1761401603715,3.81475434,192.26,192.21,2.86]
[1761401603914,4.82564885,192.31,192.21,2.86]
[1761401604109,8.24173612,192.3,192.21,2.86]
[1761401604315,3.81453023,192.29,192.21,2.86]
[1761401604616,3.81453023,192.28,192.21,2.86]
[1761401604814,3.81453023,192.27,192.21,2.86]
[1761401605023,3.81453023,192.26,192.21,2.86]
[1761401605222,3.81453023,192.25,192.21,2.86]
[1761401605416,4.82564885,192.31,192.23,2.86]
[1761401605615,3.96453174,192.3,192.23,2.86]
[1761401605816,3.96453174,192.29,192.23,2.86]
[1761401606018,3.96453174,192.28,192.23,2.86]
[1761401606218,3.96453174,192.27,192.23,2.86]
[1761401606418,3.96453174,192.26,192.23,2.86]
[1761401606717,4.82564885,192.31,192.23,2.86]
[1761401607022,3.96454481,192.3,192.23,2.86]
[1761401607222,3.96454481,192.29,192.23,2.86]
[1761401607424,3.96454481,192.28,192.23,2.86]
[1761401607722,4.82564885,192.32,192.23,2.86]
[1761401607916,3.96540634,192.31,192.23,2.86]
[1761401608125,3.96540634,192.3,192.23,2.86]
[1761401608318,3.96540634,192.29,192.23,2.86]
[1761401608520,3.96540634,192.28,192.23,2.86]
[1761401608823,4.42675003,192.32,192.23,2.86]
[1761401609022,3.96512565,192.31,192.23,2.86]
[1761401609226,3.96512565,192.3,192.23,2.86]
[1761401609428,3.96512565,192.29,192.23,2.86]
[1761401609628,3.96512565,192.28,192.23,2.86]
[1761401609830,4.42675003,192.32,192.23,2.86]
[1761401610024,3.96487805,192.31,192.23,2.86]
[1761401610228,3.96487805,192.3,192.23,2.86]
[1761401610421,3.96487805,192.29,192.23,2.86]
[1761401610625,3.96487805,192.28,192.23,2.86]
[1761401610927,4.82564885,192.33,192.23,2.86]
[1761401611128,3.96484657,192.32,192.23,2.86]
[1761401611430,3.96484657,192.31,192.23,2.86]
[1761401611632,3.96484657,192.3,192.23,2.86]
[1761401611930,3.96484657,192.29,192.23,2.86]
[1761401612130,4.42564903,192.33,192.23,2.86]
[1761401612432,3.96430573,192.32,192.23,2.86]
[1761401612729,3.96430573,192.31,192.23,2.86]
[1761401612929,3.96430573,192.3,192.23,2.86]
[1761401613123,3.96430573,192.29,192.23,2.86]
[1761401613322,4.42564903,192.33,192.23,2.86]
[1761401613527,3.96357654,192.32,192.23,2.86]
[1761401613731,3.96357654,192.31,192.23,2.86]
[1761401613932,3.96357654,192.3,192.23,2.86]
[1761401614230,3.96357654,192.29,192.23,2.86]
[1761401614427,4.82564885,192.34,192.23,2.86]
[1761401614630,3.96323502,192.33,192.23,2.86]
[1761401614830,3.96323502,192.32,192.23,2.86]
[1761401615128,3.96323502,192.31,192.23,2.86]
[1761401615325,3.96323502,192.3,192.23,2.86]
[1761401615526,3.96323502,192.29,192.23,2.86]
[1761401615829,4.82564885,192.34,192.23,2.86]
[1761401616019,3.96292847,192.33,192.23,2.86]
[1761401616220,3.96292847,192.32,192.23,2.86]
[1761401616433,3.96292847,192.31,192.23,2.86]
[1761401616624,3.96292847,192.3,192.23,2.86]
[1761401616825,3.96292847,192.29,192.23,2.86]
[1761401617119,4.82564885,192.34,192.23,2.86]
[1761401617323,3.96265158,192.33,192.23,2.86]
[1761401617525,3.96265158,192.32,192.23,2.86]
[1761401617732,3.96265158,192.31,192.23,2.86]
[1761401618032,3.96265158,192.3,192.23,2.86]
[1761401618231,3.96265158,192.29,192.23,2.86]
[1761401618432,4.82564885,192.34,192.23,2.86]
[1761401618633,3.96217486,192.33,192.23,2.86]
[1761401618843,3.96217486,192.32,192.23,2.86]
[1761401619030,3.96217486,192.31,192.23,2.86]
[1761401619327,3.96217486,192.3,192.23,2.86]
[1761401619528,3.96217486,192.29,192.23,2.86]
[1761401619728,4.82564885,192.34,192.23,2.86]
[1761401619927,3.96213625,192.33,192.23,2.86]
[1761401620135,3.96213625,192.32,192.23,2.86]
[1761401620434,3.96213625,192.31,192.23,2.86]
[1761401620627,3.96213625,192.3,192.23,2.86]
[1761401620826,3.96213625,192.29,192.23,2.86]
[1761401621029,4.82564885,192.34,192.23,2.86]
[1761401621231,3.96194975,192.33,192.23,2.86]
[1761401621434,3.96194975,192.32,192.23,2.86]
[1761401621635,3.96194975,192.31,192.23,2.86]
[1761401621933,3.96194975,192.3,192.23,2.86]
[1761401622132,3.96194975,192.29,192.23,2.86]
[1761401622330,4.82564885,192.34,192.23,2.86]
[1761401622534,3.96162523,192.33,192.23,2.86]
[1761401622834,3.96162523,192.32,192.23,2.86]
[1761401623144,3.96162523,192.31,192.25,2.66]
[1761401623335,3.96162523,192.3,192.25,2.66]
[1761401623535,3.96162523,192.29,192.25,2.66]
[1761401623737,4.82564885,192.34,192.25,2.66]
[1761401624033,3.9613189,192.33,192.25,2.66]
[1761401624231,3.9613189,192.32,192.25,2.66]
[1761401624433,3.9613189,192.31,192.25,2.66]
[1761401624635,3.9613189,192.3,192.25,2.66]
[1761401624836,3.9613189,192.29,192.25,2.66]
[1761401625028,4.82564885,192.34,192.25,2.66]
[1761401625224,1.88307726,192.26,192.08,2.66]
[1761401625439,4.82564885,192.23,192.08,2.66]
[1761401625631,13.20987019,192.22,192.08,2.66]
[1761401625838,11.59386053,192.21,192.08,2.66]
[1761401626137,11.59386053,192.2,192.08,2.66]
[1761401626334,3.96119379,192.19,192.08,2.66]
[1761401626537,3.96119379,192.18,192.08,2.66]
[1761401626734,7.63561677,192.22,192.1,2.66]
[1761401626735,3.96119379,192.17,192.1,2.66]
[1761401626928,3.96119379,192.16,192.1,2.66]
[1761401627130,3.96119379,192.15,192.1,2.66]
[1761401627427,1.20698536,192.23,192.1,2.66]
[1761401627428,6.03263421,192.23,192.1,2.66]
[1761401627635,1.20698536,192.14,192.1,2.66]
[1761401634042,1.20698536,192.12,192.08,2.66]
[1761401640443,3.46912049,192.21,192.08,2.66]
[1761401640744,1.20698536,192.13,192.08,2.66]
[1761401641634,1.20698536,192.09,192.04,2.62]
[1761401641945,1.20698536,192.08,191.96,63.66]
[1761401642245,1.20698536,192.08,191.97,63.66]
[1761401642540,1.20698536,192.08,191.98,0.90607303]
[1761401642745,1.20698536,192.08,191.98,16.51607303]
[1761401643145,1.20698536,192.08,191.98,0.90607303]
[1761401643448,1.20698536,192.08,191.99,61.34]
[1761401643844,1.20698536,192.08,192.0,2.62]
[1761401648745,1.20698536,192.1,192.0,2.62]
[1761401651145,1.20698536,192.13,192.0,2.62]
[1761401653044,1.20698536,192.14,192.0,2.62]
[1761401653642,4.08181963,192.15,192.03,2.87]
[1761401653954,4.08181963,192.16,192.03,2.87]
[1761401654252,1.20698536,192.17,192.06,2.87]
[1761401654555,5.28880499,192.17,192.08,2.87]
[1761401654747,4.08181963,192.16,192.08,2.87]
[1761401655147,1.20698536,192.17,192.08,2.87]
[1761401655354,4.08181963,192.16,192.08,2.87]
[1761401657457,4.08181963,192.15,192.08,2.87]
[1761401657757,4.08181963,192.16,192.08,2.87]
[1761401657959,4.08181963,192.18,192.08,2.87]
[1761401658152,4.08181963,192.17,192.08,2.87]
[1761401658355,4.08181963,192.16,192.08,2.87]
[1761401658651,3.45147299,192.2,192.08,2.87]
[1761401658652,4.08181963,192.19,192.09,2.87]
[1761401658857,4.08181963,192.18,192.09,2.87]
[1761401659056,7.53472758,192.21,192.09,2.87]
[1761401659355,4.08181963,192.2,192.11,1.20698536]
[1761401659659,4.08181963,192.2,192.12,2.87]
[1761401659858,4.08181963,192.23,192.12,2.87]
[1761401660058,4.08181963,192.22,192.12,2.87]
[1761401660253,4.08181963,192.21,192.12,2.87]
[1761401660455,4.08181963,192.2,192.12,2.87]
[1761401660662,4.08181963,192.19,192.12,2.87]
[1761401660858,4.08181963,192.22,192.12,2.87]
[1761401661060,4.08181963,192.21,192.12,2.87]
[1761401661260,4.08181963,192.2,192.12,2.87]
[1761401661459,4.08181963,192.19,192.12,2.87]
[1761401661656,4.0913198,192.22,192.12,2.87]
[1761401661960,4.0913198,192.21,192.12,2.87]
[1761401662155,4.0913198,192.23,192.12,2.87]
[1761401662353,4.0913198,192.22,192.15,2.87]
[1761401662553,4.0913198,192.21,192.15,2.87]
[1761401662760,4.0913198,192.25,192.15,2.87]
[1761401662962,4.0913198,192.24,192.15,2.87]
[1761401663162,4.0913198,192.23,192.15,2.87]
[1761401663361,4.0913198,192.22,192.15,2.87]
[1761401663567,4.0913198,192.21,192.15,2.87]
[1761401663761,3.44019372,192.25,192.15,2.87]
[1761401664056,4.09596125,192.24,192.15,2.87]
[1761401664260,4.09596125,192.23,192.15,2.87]
[1761401664457,4.09596125,192.22,192.15,2.87]
[1761401664657,3.44019372,192.25,192.15,2.87]
[1761401664658,4.09596125,192.21,192.15,2.87]
[1761401664863,3.44019372,192.25,192.15,2.87]
[1761401665161,4.09862822,192.24,192.15,2.87]
[1761401665464,4.09862822,192.23,192.15,2.87]
[1761401665662,4.09862822,192.22,192.15,2.87]
[1761401665963,4.09862822,192.21,192.15,2.87]
[1761401666159,3.44692739,192.25,192.15,2.87]
[1761401666354,4.10136605,192.24,192.15,2.87]
[1761401666654,4.10136605,192.23,192.15,2.87]
[1761401666859,4.10136605,192.22,192.15,2.87]
[1761401667060,4.10136605,192.21,192.15,2.87]
[1761401667260,3.44942715,192.25,192.15,2.87]
[1761401667556,4.1071078,192.24,192.15,2.87]
[1761401667857,4.1071078,192.23,192.15,2.87]
[1761401668057,4.1071078,192.22,192.15,2.87]
[1761401668266,4.1071078,192.21,192.15,2.87]
[1761401668459,4.1071078,192.2,192.15,2.87]
[1761401668661,4.82564885,192.25,192.15,2.87]
[1761401668859,4.11044319,192.24,192.15,2.87]
[1761401669059,4.11044319,192.23,192.15,2.87]
[1761401669259,4.82564885,192.25,192.15,2.87]
[1761401669260,4.11044319,192.22,192.15,2.87]
[1761401669457,4.11044319,192.21,192.15,2.87]
[1761401669657,4.11044319,192.2,192.15,2.87]
[1761401669858,3.45441178,192.24,192.15,2.87]
[1761401670058,4.11429198,192.23,192.17,1.20698536]
[1761401670257,4.11429198,192.22,192.18,2.87]
[1761401670462,4.82564885,192.27,192.18,2.87]
[1761401670759,7.57119364,192.26,192.18,2.87]
[1761401670958,4.11348334,192.25,192.18,2.87]
[1761401671158,4.11348334,192.24,192.18,2.87]
[1761401671360,4.11348334,192.23,192.18,2.87]
[1761401671561,4.11348334,192.22,192.18,2.87]
[1761401671760,4.82564885,192.27,192.18,2.87]
[1761401671961,4.11224772,192.26,192.18,2.87]
[1761401672163,4.11224772,192.25,192.18,2.87]
[1761401672364,4.11224772,192.24,192.18,2.87]
[1761401672665,4.82564885,192.28,192.18,2.87]
[1761401672666,4.11224772,192.23,192.18,2.87]
[1761401672868,4.11224772,192.22,192.18,2.87]
[1761401673069,4.82564885,192.28,192.18,2.87]
[1761401673367,4.11114442,192.27,192.18,2.87]
[1761401673569,4.11114442,192.26,192.18,2.87]
[1761401673867,4.11114442,192.25,192.18,2.87]
[1761401674061,4.11114442,192.24,192.18,2.87]
[1761401674263,4.82564885,192.29,192.18,2.87]
[1761401674565,4.11006766,192.28,192.18,2.87]
[1761401674760,4.11006766,192.27,192.18,2.87]
[1761401674961,4.11006766,192.26,192.18,2.87]
[1761401675164,4.11006766,192.25,192.18,2.87]
[1761401675367,4.11006766,192.24,192.18,2.87]
[1761401675560,4.82564885,192.3,192.18,2.87]
[1761401675761,4.10897613,192.29,192.18,2.87]
[1761401675960,4.10897613,192.28,192.18,2.87]
[1761401676161,4.10897613,192.27,192.18,2.87]
[1761401676369,4.10897613,192.26,192.18,2.87]
[1761401676570,4.10897613,192.25,192.18,2.87]
[1761401676869,4.82564885,192.3,192.18,2.87]
[1761401677060,4.10795798,192.29,192.18,2.87]
[1761401677261,4.10795798,192.28,192.18,2.87]
[1761401677456,4.10795798,192.27,192.18,2.87]
[1761401677663,4.10795798,192.26,192.18,2.87]
[1761401677860,4.10795798,192.25,192.18,2.87]
[1761401678062,4.10795798,192.29,192.18,2.87]
[1761401678265,4.10795798,192.28,192.18,2.87]
[1761401678464,4.82564885,192.3,192.18,2.87]
[1761401678465,4.10795798,192.27,192.18,2.87]
[1761401678661,4.10795798,192.26,192.18,2.87]
[1761401678858,4.10795798,192.3,192.18,2.87]
[1761401679064,4.10795798,192.29,192.18,2.87]
[1761401679369,4.10795798,192.28,192.18,2.87]
[1761401679570,4.10795798,192.27,192.18,2.87]
[1761401679769,4.10795798,192.26,192.18,2.87]
[1761401679970,4.10795798,192.3,192.18,2.87]
[1761401680271,4.10795798,192.29,192.18,2.87]
[1761401680465,4.10795798,192.28,192.18,2.87]
[1761401680673,4.10795798,192.3,192.21,2.66]
[1761401680864,4.82564885,192.32,192.21,2.66]
[1761401680865,4.10795798,192.29,192.21,2.66]
[1761401681065,4.10795798,192.28,192.21,2.66]
[1761401681264,4.10795798,192.31,192.21,2.66]
[1761401681468,4.10795798,192.3,192.21,2.66]
[1761401681669,4.10795798,192.29,192.21,2.66]
[1761401681871,4.10795798,192.28,192.21,2.66]
[1761401682172,4.10795798,192.32,192.21,2.66]
[1761401682375,4.10795798,192.31,192.21,2.66]
[1761401682572,4.10795798,192.3,192.21,2.66]
[1761401682773,4.10795798,192.29,192.21,2.66]
[1761401682970,4.10795798,192.32,192.21,2.66]
[1761401683167,4.10795798,192.31,192.21,2.66]
[1761401683371,4.10795798,192.31,192.17,57.39]
[1761401683372,4.10795798,192.3,192.24,2.66]
[1761401683571,4.10795798,192.33,192.24,2.66]
[1761401683768,4.10795798,192.32,192.24,2.66]
[1761401683967,4.10795798,192.31,192.24,2.66]
[1761401684167,4.10795798,192.3,192.24,2.66]
[1761401684372,4.10795798,192.33,192.24,2.66]
[1761401684568,4.10795798,192.32,192.24,2.66]
[1761401684876,4.10795798,192.31,192.24,2.66]
[1761401685076,4.10795798,192.34,192.24,2.66]
[1761401685275,4.10795798,192.33,192.24,2.66]
[1761401685470,4.10795798,192.32,192.24,2.66]
[1761401685670,4.10795798,192.31,192.24,2.66]
[1761401685976,4.10795798,192.34,192.24,2.66]
[1761401686177,4.10795798,192.33,192.24,2.66]
[1761401686478,4.10795798,192.32,192.24,2.66]
[1761401686674,4.10795798,192.35,192.24,2.66]
[1761401686877,4.10795798,192.34,192.24,2.66]
[1761401687078,4.10795798,192.33,192.24,2.66]
[1761401687379,4.10795798,192.32,192.24,2.66]
[1761401687570,4.10795798,192.35,192.24,2.66]
[1761401687773,4.10795798,192.34,192.24,2.66]
[1761401687971,4.10795798,192.33,192.24,2.66]
[1761401688171,4.10795798,192.32,192.24,2.66]
[1761401688371,4.10795798,192.35,192.24,2.66]
[1761401688572,4.10795798,192.34,192.24,2.66]
[1761401688767,52.23263421,192.36,192.24,2.66]
[1761401688768,4.10795798,192.33,192.24,2.66]
[1761401688971,4.10795798,192.32,192.24,2.66]
[1761401689171,4.10795798,192.35,192.24,2.66]
[1761401689370,4.10795798,192.34,192.24,2.66]
[1761401689567,46.2,192.36,192.24,2.66]
[1761401689568,4.10795798,192.33,192.24,2.66]
[1761401689766,4.10795798,192.35,192.24,2.66]
[1761401689978,4.10795798,192.34,192.24,2.66]
[1761401690179,4.10795798,192.33,192.24,2.66]
[1761401690381,4.10795798,192.35,192.24,2.66]
[1761401690572,51.02564885,192.36,192.24,2.66]
[1761401690573,4.10795798,192.34,192.24,2.66]
[1761401690772,4.10795798,192.33,192.24,2.66]
[1761401690972,51.02564885,192.36,192.24,2.66]
[1761401690973,4.10795798,192.35,192.24,2.66]
[1761401691173,4.10795798,192.34,192.24,2.66]
[1761401691375,4.10795798,192.33,192.24,2.66]
[1761401691577,4.10795798,192.32,192.24,2.66]
[1761401691776,4.10795798,192.35,192.24,2.66]
[1761401691977,4.10795798,192.34,192.24,2.66]
[1761401692278,4.10795798,192.33,192.24,2.66]
[1761401692480,4.10795798,192.32,192.24,2.66]
[1761401692683,4.10795798,192.35,192.24,2.66]
[1761401692885,4.10795798,192.34,192.24,2.66]
[1761401693077,4.10795798,192.33,192.24,2.66]
[1761401693278,4.10795798,192.32,192.24,2.66]
[1761401693482,4.10795798,192.31,192.24,2.66]
[1761401693681,4.10795798,192.34,192.24,2.66]
[1761401693879,4.10795798,192.33,192.24,2.66]
[1761401694078,4.10795798,192.32,192.24,2.66]
[1761401694275,4.10795798,192.31,192.24,2.66]
[1761401694481,4.10795798,192.3,192.24,2.66]
[1761401694681,4.10795798,192.34,192.24,2.66]
[1761401694978,4.10795798,192.33,192.24,2.66]
[1761401695174,4.82564885,192.35,192.24,2.66]
[1761401695175,4.10795798,192.32,192.24,2.66]
[1761401695382,4.10795798,192.31,192.24,2.66]
[1761401695582,4.10795798,192.3,192.24,2.66]
[1761401695782,4.10795798,192.34,192.24,2.66]
[1761401695986,4.10795798,192.33,192.24,2.66]
[1761401696185,4.10795798,192.32,192.24,2.66]
[1761401696385,4.10795798,192.31,192.24,2.66]
[1761401696584,4.82564885,192.35,192.24,2.66]
[1761401696585,4.10795798,192.3,192.24,2.66]
[1761401696885,4.82564885,192.35,192.24,2.66]
[1761401697085,4.10497048,192.34,192.24,2.66]
[1761401697285,4.10497048,192.33,192.24,2.66]
[1761401697488,4.10497048,192.32,192.24,2.66]
[1761401697689,4.10497048,192.31,192.24,2.66]
[1761401697884,4.10497048,192.3,192.24,2.66]
[1761401698087,4.82564885,192.35,192.24,2.66]
[1761401698280,8.93219599,192.34,192.24,2.66]
[1761401698485,4.10654714,192.33,192.24,2.66]
[1761401698789,4.10654714,192.32,192.24,2.66]
[1761401699083,4.10654714,192.31,192.24,2.66]
[1761401699287,4.10654714,192.3,192.24,2.66]
[1761401699488,4.10654714,192.29,192.24,2.66]
[1761401699689,4.82564885,192.34,192.24,2.66]
[1761401699890,4.10974448,192.33,192.24,2.66]
[1761401700091,4.10974448,192.32,192.24,2.66]
[1761401700290,4.10974448,192.31,192.24,2.66]
[1761401700491,4.10974448,192.3,192.24,2.66]
[1761401700693,4.10974448,192.29,192.24,2.66]
[1761401700886,4.82564885,192.35,192.24,2.66]
[1761401701084,4.11180013,192.34,192.24,2.66]
[1761401701390,4.11180013,192.33,192.24,2.66]
[1761401701585,4.11180013,192.32,192.24,2.66]
[1761401701786,4.11180013,192.31,192.24,2.66]
[1761401702088,4.11180013,192.3,192.24,2.66]
[1761401702289,4.82564885,192.35,192.24,2.66]
[1761401702490,4.11569818,192.34,192.24,2.66]
[1761401702692,4.11569818,192.33,192.24,2.66]
[1761401702892,4.11569818,192.32,192.24,2.66]
[1761401703092,4.11569818,192.31,192.24,2.66]
[1761401703293,46.2,192.36,192.24,2.66]
[1761401703294,4.11569818,192.3,192.24,2.66]
[1761401703492,4.11569818,192.29,192.24,2.66]
[1761401703796,4.82564885,192.34,192.24,2.66]
[1761401703994,4.11718498,192.33,192.24,2.66]
[1761401704195,4.11718498,192.32,192.24,2.66]
[1761401704395,4.11718498,192.31,192.24,2.66]
[1761401704597,4.11718498,192.3,192.24,2.66]
[1761401704796,4.11718498,192.29,192.24,2.66]
[1761401705089,4.82564885,192.33,192.24,2.66]
[1761401705290,4.11891446,192.32,192.24,2.66]
[1761401705486,4.11891446,192.31,192.24,2.66]
[1761401705694,4.82564885,192.33,192.24,2.66]
[1761401705695,4.11891446,192.3,192.24,2.66]
[1761401705896,4.11891446,192.29,192.24,2.66]
[1761401706093,4.82564885,192.33,192.24,2.66]
[1761401706290,4.11985846,192.32,192.24,2.66]
[1761401706494,4.11985846,192.31,192.24,2.66]
[1761401706694,4.11985846,192.3,192.24,2.66]
[1761401706994,4.11985846,192.29,192.24,2.66]
[1761401707196,4.11985846,192.28,192.24,2.66]
[1761401707399,4.82564885,192.32,192.24,2.66]
[1761401707693,10.83031429,192.31,192.21,2.7]
[1761401707893,8.94711137,192.3,192.21,2.7]
[1761401708099,4.12146252,192.29,192.21,2.7]
[1761401708289,4.12146252,192.28,192.21,2.7]
[1761401708498,4.12146252,192.27,192.21,2.7]
[1761401708693,4.12146252,192.26,192.21,2.7]
[1761401708901,6.70885177,192.31,192.21,2.7]
[1761401709100,4.121759,192.3,192.21,2.7]
[1761401709287,4.121759,192.29,192.21,2.7]
[1761401709601,4.121759,192.28,192.21,2.7]
[1761401709797,4.121759,192.27,192.21,2.7]
[1761401710099,4.82564885,192.32,192.21,2.7]
[1761401710396,4.12305015,192.31,192.21,2.7]
[1761401710599,4.12305015,192.3,192.21,2.7]
[1761401710795,4.12305015,192.29,192.21,2.7]
[1761401710995,4.12305015,192.28,192.21,2.7]
[1761401711297,4.12305015,192.27,192.21,2.7]
[1761401711492,4.82564885,192.31,192.21,2.7]
[1761401711691,4.12444263,192.3,192.21,2.7]
[1761401711892,4.12444263,192.29,192.21,2.7]
[1761401712092,4.12444263,192.28,192.21,2.7]
[1761401712293,4.12444263,192.27,192.21,2.7]
[1761401712498,4.82564885,192.31,192.21,2.7]
[1761401712798,4.12508635,192.3,192.21,2.7]
[1761401712999,4.12508635,192.29,192.21,2.7]
[1761401713206,4.12508635,192.28,192.21,2.7]
[1761401713401,4.12508635,192.27,192.21,2.7]
[1761401713699,4.82564885,192.31,192.21,2.7]
[1761401713899,4.12599473,192.3,192.21,2.7]
[1761401714102,4.12599473,192.29,192.21,2.7]
[1761401714301,4.12599473,192.28,192.21,2.7]
[1761401714599,4.12599473,192.27,192.21,2.7]
[1761401714795,4.82564885,192.31,192.21,2.7]
[1761401715003,4.12683496,192.3,192.21,2.7]
[1761401715203,4.12683496,192.29,192.21,2.7]
[1761401715501,4.12683496,192.28,192.21,2.7]
[1761401715801,4.12683496,192.27,192.21,2.7]
[1761401715999,4.12683496,192.26,192.21,2.7]
[1761401716199,4.82564885,192.31,192.21,2.7]
[1761401716400,4.12839765,192.3,192.21,2.7]
[1761401716603,4.12839765,192.29,192.21,2.7]
[1761401716804,4.82564885,192.31,192.21,2.7]
[1761401716805,4.12839765,192.28,192.21,2.7]
[1761401717103,4.12839765,192.27,192.21,2.7]